Cogmind - Beta 16 @@@ ROGUE MODE // 2026.02.01 @ 19:20:52 Player: Assis Result: Self-destructed Performance ------------- Evolutions (1) 500 Regions Visited (2) 400 Robots Destroyed (42) 210 Value Destroyed (1126) 1126 Prototype IDs (3) 60 Alien Tech Used (0) 0 Bonus (0) 0 TOTAL SCORE: 2296 Bonus ------- None Cogmind --------- Core Integrity 215/400 Matter 300/300 Energy 250/250 System Corruption 0% Temperature Cool (0) Movement Core (500) Ox9 Location -9/Materials Parts ------- > --- POWER (2) -------- Ion Engine > --- PROPULSION (2) --- (None) > --- UTILITY (3) ------ Large Storage Unit Structural Scanner Core Shielding > --- WEAPON (2) ------- Improved EM Shotgun > --- INVENTORY (15) --- Light Ion Engine Light Ion Engine Weight Redist. System Terrain Scanner Improved Terrain Scanner Grenade Launcher Peak State ------------ > --- POWER ------------ Ion Engine > --- PROPULSION ------- Light Treads Light Treads > --- UTILITY ---------- Small Storage Unit Seismic Detector > --- WEAPON ----------- Heavy EM Pulse Gun Heavy EM Pulse Gun > --- INVENTORY -------- Light Ion Engine Light Ion Engine Improved Terrain Scanner Heavy EM Pulse Gun Heavy EM Pulse Gun Grenade Launcher [Rating: 10] Favorites ----------- Power Ion Engine Engine Ion Engine Propulsion Light Treads Treads Light Treads Leg Aluminum Leg Utility Large Storage Unit Device Structural Scanner Storage Large Storage Unit Protection Light Armor Plating Weapon Heavy EM Pulse Gun Energy Gun Heavy EM Pulse Gun Ballistic Gun Light Assault Rifle Launcher Grenade Launcher Build | -11 -10 -9 ------- Run | Yrd Mat Mat Slots Evolved 2 | . . 2 Power 1 | . . 1 Propulsion . | . . . Utility 1 | . . 1 Weapon . | . . . Parts Attached 24 | 7 7 10 Power 4 | 1 1 2 Engine 4 | 1 1 2 Core . | . . . Reactor . | . . . Propulsion 3 | 2 . 1 Treads 2 | 2 . . Leg 1 | . . 1 Wheel . | . . . Hover . | . . . Flight . | . . . Utility 8 | 2 2 4 Device 3 | 1 . 2 Storage 2 | 1 1 . Processor . | . . . Hackware . | . . . Protection 3 | . 1 2 Artifact . | . . . Weapon 9 | 2 4 3 Energy Gun 7 | 1 4 2 Energy Cannon . | . . . Ballistic Gun 1 | 1 . . Ballistic Cannon . | . . . Launcher 1 | . . 1 Special Weapon . | . . . Impact Weapon . | . . . Slashing Weapon . | . . . Piercing Weapon . | . . . Special Melee Weapon . | . . . Unidentified Prototypes . | . . . Parts Lost 15 | . 4 11 Power 3 | . 1 2 Propulsion 3 | . . 3 Utility 3 | . 1 2 Weapon 6 | . 2 4 Highest Loss Streak 3 | . 2 3 To Critical Strikes . | . . . Average Backups 6 | 1 7 6 Power 2 | . 2 2 Propulsion . | . . . Utility 2 | . 1 2 Weapon 1 | . 2 1 Tool/Special . | . . . Unused Backups 5 | . 1 4 Power 3 | . 1 2 Propulsion . | . . . Utility 2 | . . 2 Weapon . | . . . Tool/Special . | . . . Average Slot Usage (%) 79 | . 90 70 Engine 13 | . 13 13 Treads 14 | . 28 2 Leg 1 | . . 2 Device 10 | . 5 15 Storage 12 | . 14 11 Protection 7 | . 8 6 Energy Gun 18 | . 18 18 Peak Build Rating 10 | 7 10 10 Average Rating 8 | 6 8 8 On Entrance 5 | . 7 9 Avg Prop Armor Cover (%) . | . . . Naked Turns . | . . . Heaviest Build 38 | 13 34 38 Greatest Support 40 | 40 40 40 Greatest Overweight (x) 12 | . . 12 Average Overweight (x) 1 | . . 5 Largest Inventory Capacity 15 | 8 15 15 Average Capacity 12 | 7 10 15 Most Carried 8 | 3 8 7 Average Carried 6 | 1 7 6 Final Capacity 15 | 8 15 15 Final Carried 6 | 3 5 6 Class Distribution -------------------- 89% | Mutant 10% | Scavenger-Mutant Dominant Class ---------------- Mutant | -10/Materials Mutant | -9/Materials Resources | -11 -10 -9 ----------- Run | Yrd Mat Mat Matter Collected 504 | 278 68 158 Remotely . | . . . Salvage Created 1513 | 81 860 572 Parts 104 | 10 59 35 Haulers Intercepted 2 | . 1 1 Recyclers Shooed 2 | 1 1 . Parts Field Recycled . | . . . Retrieved Matter . | . . . Parts Self-Destructed . | . . . Prevented . | . . . Parts Restored . | . . . Kills | -11 -10 -9 ------- Run | Yrd Mat Mat Combat Hostiles Destroyed 31 | . 20 11 Guns 24 | . 17 7 AOE 7 | . 3 4 Classes Destroyed 10 | 1 5 4 Worker 1 | . 1 . Builder 2 | . 1 1 Tunneler 4 | 4 . . Hauler 2 | . 1 1 Operator 1 | . . 1 Watcher 1 | . . 1 Swarmer 6 | . 6 . Grunt 21 | . 14 7 Duelist 1 | . . 1 Sentry 3 | . . 3 Best Kill Streak 5 | 1 5 3 Combat Bots Only 5 | . 5 3 Max Kills in Single Turn 2 | 1 2 2 Gunslinging . | . . . Exploded 2 | . 2 2 Melee . | . . . Uniques/NPCs Destroyed . | . . . Combat | -11 -10 -9 -------- Run | Yrd Mat Mat Hostile Shots Fired 146 | . 82 64 Missed 41 | . 24 17 Hits 105 | . 58 47 Melee 4 | . . 4 Projectile 101 | . 58 43 Critical Strikes 2 | . 2 . Damage Taken 1507 | . 660 847 Core 248 | . 63 185 Absorbed by Shields . | . . . Redirected to Shielding 10 | . . 10 Core Remaining (%) 87 | 100 74 . Volleys Fired 115 | 8 68 39 Largest 2 | 2 2 2 Hottest 90 | 60 90 90 Shots Fired 156 | 16 81 59 Gun 153 | 16 81 56 Cannon . | . . . Launcher 3 | . . 3 Special . | . . . Kinetic 8 | 8 . . Thermal 8 | 8 . . Explosive 3 | . . 3 Electromagnetic 137 | . 81 56 Robot Hit Streak 18 | 3 13 18 Robot Miss Streak 4 | 4 4 3 Penetration Max . | . . . Secondary Targets . | . . . Shots Hit Robots 106 | 8 54 44 Core Hits 54 | 4 27 23 Critical Kills . | . . . Critical Parts Destroyed . | . . . Critical Strikes 3 | . 2 1 Corrupt 3 | . 2 1 Melee Attacks . | . . . Impact . | . . . Slashing . | . . . Piercing . | . . . Sneak Attacks . | . . . Combat Hostiles . | . . . Follow-up Attacks . | . . . Damage Inflicted 2136 | 77 1097 962 Guns 1592 | 77 908 607 Cannons . | . . . Explosions 537 | . 182 355 Melee . | . . . Ramming 7 | . 7 . Kinetic 26 | 26 . . Thermal 456 | 51 182 223 Explosive 132 | . . 132 Electromagnetic 1515 | . 908 607 Impact . | . . . Slashing . | . . . Piercing . | . . . Highest Corruption . | . . . Average Corruption . | . . . Corruption Purged . | . . . Corruption Blocked . | . . . Overload Shots . | . . . Overflow Damage 36 | . 4 32 Projectiles . | . . . Explosions 36 | . 4 32 Melee . | . . . Knockbacks . | . . . Impact . | . . . Kinetic . | . . . Secondary . | . . . Self-Inflicted Damage 202 | . 54 148 Shots 5 | . 1 4 Rammed 4 | . 4 . Targets Rammed 4 | . 4 . Kicked . | . . . Crushed . | . . . Highest Temperature 168 | 20 148 168 Average Temperature 48 | 15 48 53 Received Heat Transfer 483 | . 231 252 Siege Activations . | . . . Martial Activations . | . . . Shielding Activations . | . . . Robots Disrupted . | . . . Combat Hostiles . | . . . Robots Corrupted . | . . . Combat Hostiles . | . . . Parts Fried 7 | . 4 3 Impact Corruptions . | . . . Robots Melted . | . . . Combat Hostiles . | . . . Parts Melted 1 | . . 1 Heat Transferred 625 | 125 300 200 Parts Sabotaged . | . . . Parts Stolen . | . . . Parts Stripped . | . . . Power Chain Reactions 6 | . 3 3 Alert | -11 -10 -9 ------- Run | Yrd Mat Mat Maximum Alert Level . | . . . Low Security (%) 100 | 100 100 100 Level 1 . | . . . Level 2 . | . . . Level 3 . | . . . Level 4 . | . . . Level 5 . | . . . High Security . | . . . Max Security . | . . . Peak Influence 197 | 5 197 115 Initial 75 | . . 75 Average 49 | . 80 31 Influence Increases 982 | 20 558 404 Destroy 0b10 Robot/C 620 | . 400 220 Destroy 0b10 Robot/NC 55 | 20 15 20 Destroy Leader 166 | . 92 74 Successful Hack 45 | . 25 20 Disable Machine 45 | . . 45 Destroy Structure 36 | . 11 25 Lose Combat Pursuer 15 | . 15 . Influence Decreases 907 | 20 379 508 Entered New Map 104 | . . 104 Time Decay 673 | 20 339 314 Lost Part 130 | . 40 90 Squads Dispatched 6 | . 3 3 Investigation 4 | . 3 1 Extermination . | . . . Reinforcement 2 | . . 2 Assault . | . . . Garrison . | . . . Intercept . | . . . Searches Triggered . | . . . Construction Impeded . | . . . Haulers Reinforced . | . . . Active Scanning Responses . | . . . Cargo Convoy Interrupts . | . . . Stealth | -11 -10 -9 --------- Run | Yrd Mat Mat Distress Signals 3 | . 1 2 Communications Jammed . | . . . Distress Signals . | . . . Times Spotted 59 | . 33 26 Peak Tracking Total 8 | . 8 5 Tactical Retreats 1 | . 1 . Traps | -11 -10 -9 ------- Run | Yrd Mat Mat Traps Triggered 3 | . 2 1 Indirectly . | . . . Trap Hack Attempts . | . . . Triggered . | . . . Disarmed . | . . . Reprogrammed . | . . . Reused . | . . . Traps Extracted . | . . . Installed . | . . . Triggered . | . . . Machines | -11 -10 -9 ---------- Run | Yrd Mat Mat Machines Disabled 3 | . . 3 Max in Single Turn 2 | . . 2 Machines Repaired . | . . . Machines Dismantled . | . . . Machines Sabotaged . | . . . Overloaded Fab Kills . | . . . Hacking | -11 -10 -9 --------- Run | Yrd Mat Mat Machines Accessed 9 | . 6 3 Terminals 8 | . 6 2 Fabricators . | . . . Repair Stations . | . . . Recycling Units . | . . . Scanalyzers 1 | . . 1 Garrison Access . | . . . Total Hacks 29 | . 20 9 Successful 15 | . 9 6 Failed 13 | . 11 2 Catastrophic 2 | . 2 . Database Lockouts 1 | . . 1 Manual 10 | . 8 2 Terminals 26 | . 20 6 Fabricators . | . . . Repair Stations . | . . . Recycling Units . | . . . Scanalyzers 3 | . . 3 Garrison Access . | . . . Terminal Hacks 13 | . 9 4 Prototype ID Bank 2 | . 1 1 Terminal Index 2 | . 1 1 Alert Level 1 | . 1 . Locate Traps 3 | . 2 1 Security Status 1 | . 1 . Hauler Manifests 1 | . . 1 Registered Components 1 | . 1 . Zone Layout 2 | . 2 . Fabricator Hacks . | . . . Repair Station Hacks . | . . . Recycling Unit Hacks . | . . . Scanalyzer 2 | . . 2 Retrieve Study 2 | . . 2 Garrison Access Hacks . | . . . Unauthorized Hacks . | . . . Terminals . | . . . Fabricators . | . . . Repair Stations . | . . . Recycling Units . | . . . Scanalyzers . | . . . Garrison Access . | . . . Data Cores Recovered . | . . . Used . | . . . Hacking Detections 9 | . 6 3 Full Trace Events 3 | . 3 . Feedback Events . | . . . Feedback Blocked . | . . . Robot Schematics Acquired . | . . . Robots Built . | . . . Authchips . | . . . Time . | . . . Total Robot Build Rating . | . . . Part Schematics Acquired . | . . . Parts Built . | . . . Authchips . | . . . Time . | . . . Total Part Build Rating . | . . . Part Studies Acquired 2 | . . 2 Parts Repaired . | . . . Time . | . . . Parts Recycled . | . . . Recycled Matter . | . . . Retrieved Matter . | . . . Retrieved Components . | . . . Parts Scanalyzed . | . . . Part Schematics Acquired . | . . . Parts Damaged . | . . . Bothacking | -11 -10 -9 ------------ Run | Yrd Mat Mat Used RIF Installer . | . . . Robots Hacked . | . . . Non-combat . | . . . Combat . | . . . Robot Hacks Applied . | . . . Relay Couplers Released . | . . . Fabnet Peak Effective % . | . . . Robots Rewired . | . . . Allies Hacked . | . . . Hacks Repelled . | . . . Allies | -11 -10 -9 -------- Run | Yrd Mat Mat Total Allies . | . . . Largest Group . | . . . Highest-Rated Group . | . . . Highest-Rated Ally . | . . . Total Orders . | . . . Ally Attacks . | . . . Total Damage . | . . . Kills . | . . . Allies Corrupted . | . . . Allies Melted . | . . . Intel | -11 -10 -9 ------- Run | Yrd Mat Mat Active Infowar (turns) 2079 | 164 469 1446 Terrain 582 | . . 582 Structural 1446 | . . 1446 Seismic 633 | 164 469 . Robot Analysis Total . | . . . Derelict Logs Recovered . | . . . Drone Launches . | . . . Drone Recoveries . | . . . Exploration | -11 -10 -9 ------------- Run | Yrd Mat Mat Turns Passed 2858 | 228 1184 1446 Spaces Moved 1056 | 125 593 338 Core 165 | 6 . 159 Treads 813 | 119 593 101 Legs 78 | . . 78 Wheels . | . . . Hover . | . . . Flight . | . . . Fastest Speed 50 | 50 160 160 Average Speed 232 | 154 160 389 Slowest Speed 650 | 160 160 650 Overloaded Moves . | . . . Propulsion Burnouts . | . . . Robots Hopped . | . . . Potential Cave-ins . | . . . Cave-ins Triggered . | . . . Exploration Rate (%) 36 | 7 71 30 Regions Visited 2 Branch Regions . Pre-discovered Areas . | . . . Known Exits Taken . | . . . Unknown Exits Taken 2 | 1 1 . Scrap Searched . | . . . Spaces Dug . | . . . Terrain Destroyed 33 | . 10 23 Melee . | . . . Projectile . | . . . AOE 33 | . 10 23 Terrain Rammed . | . . . Walls Destroyed . | . . . Machines Disabled . | . . . Actions | -11 -10 -9 --------- Run | Yrd Mat Mat Total 1290 | 142 745 403 Wait 75 | . 66 9 Move 1054 | 124 592 338 Hop . | . . . Pick Up 11 | 3 6 2 Fast Attach 14 | 7 1 6 Attach 7 | . 3 4 Detach 1 | . . 1 Swap 7 | . 3 4 Drop 2 | . 2 . Fire 115 | 8 68 39 Melee . | . . . Ram . | . . . Kick . | . . . Crush 4 | . 4 . Escape Stasis . | . . . Rewire . | . . . Trap . | . . . Miscellaneous . | . . . Route ------- -11/Scrapyard -10/Materials (discovered 3 exits: *Mat x3) -9/Materials History --------- Turn | Location | Event 11 | -11/Scrapyard | Discovered new exit (range 14) 229 | -11/Scrapyard | Entered Materials 315 | -10/Materials | Build established: Mutant 751 | -10/Materials | Discovered new exit (range 13) 937 | -10/Materials | Discovered new exit (range 16) 1111 | -10/Materials | Discovered new exit (range 16) 1129 | -10/Materials | Derelicts attacked the area 1413 | -10/Materials | Entered another Materials area 1413 | -9/Materials | Evolved 2 slots: Power x1, Utility x1 1563 | -9/Materials | Central database locked down 2628 | -9/Materials | Lost 3 parts (1p1u1w) 2812 | -9/Materials | Build established: Scavenger-Mutant 2859 | -9/Materials | Self-destructed Last Messages --------------- 02658_ Ion Engine damaged (-1). 02658_ Lrg. Storage Unit damaged (-90). 02659_ K-01 Serf cleans the Electrolysis Chamber. 02659_ Acquired Grenade Launcher. 02662_ K-01 Serf cleans the Electrolysis Chamber. 02769_ Acquired 27 matter. 02828_ Aluminum Leg destroyed. 02833_ Chain reaction triggered in Imp. Ion Engine. 02833_ Visual Processing Unit melted. 02833_ W-16 Scout destroyed. 02837_ U-05 Engineer lays Concrete. 02839_ Y-45 Defender destroyed. 02839_ U-05 Engineer destroyed. 02844_ ALERT: Hostiles spotted, dispatching reinforcements to Terminal M002. 02850_ U-05 Engineer lays Concrete. 02850_ R-06 Scavenger collects Corrupted Lgt. Treads. 02851_ U-05 Engineer lays Concrete. 02857_ Ion Engine destroyed. 02857_ U-05 Engineer lays Concrete. Map ----- +----------------------------------------------------+ | ?????????????????????????????????????????????????? | | ?????????????????????????????????????????????????? | | ?????????????????????????????????????????????????? | | ?????????????????????????????????????????????????? | | ?????????????????????????????????????????????????? | | ?????????????????????????????????????????????????? | | ?????????????????????????????????????????????????? | | ?????????????????????????????????????????????????? | | ?????????????????????????????????????????????????? | | ?????????????????????????????????????????????????? | | ???????????????????????? ??????????????????????? | | ???????????????????????? ??????????????????????? | | ?????????????????????? # ##????????????????????? | | ?????????????????????? # ##????????????????????? | | ??????????????????????##g ##????????????????????? | | ?????????????????????? ##????????????????????? | | ?????????????????????? ##????????????????????? | | ??????????????#####???## ##????????????????????? | | ?????????????######???##k ##????????????????????? | | ?????????????###!!!???## ##????????????????????? | | ?????????????##! ?### = ## ???????????????????? | | ?????????? #### ###*%=## ???????????????????? | | ??????????##### ## ! # ???????????????????? | | ?????????? [! # ???????????????????? | | ?????????? s %%! + ???????????????????? | | ?????????? r su @ # ???????????????????? | | ????????????????###+### u # ????????????????? | | ???????????????? ###/#######????????????????? | | ?????????????????????"# ##????????????????? | | ?????????????????????"# """"" ########### ??????? | | ?????????????????????"# """"" ############??????? | | ????????????????????? # """"" #### =##??????? | | ????????????????????? # """"" #### ##??????? | | ?????????????????????+# """"" %+ + """ ##??????? | | ????????????????????? # """"" #### """ ##? ##??? | | ????????????????????? # """"" #### """ ##? ##??? | | ????????????????????? # #### ## ## | | ??????????????????????################+#### ##### | | ??????????????????????############# | | ?????????????????????????????????## | | ????????????????????????????????### | | ?????????????????????????????????## #######+#### | | ?????????????????## ?????????????## ## # | | ?????????????????## ? # ##### ##????? ???? | | ?????????????????## ############# ##????? ???? | | ?????????????????## ##?????????# | | ????????????????? # ##????? ??? | | ????????????????? # = ##?????????? | | ????????????????? + ^ """ = ##??????? ?? | | ?????????????????????? """ = ## ????? | +----------------------------------------------------+ Best States ------------- Heat Dissipation 28 Energy Generation 15 Energy Capacity 400 Matter Stores 300 Matter Capacity 300 Sight Range 16 Terrain Scan Range 14 Terrain Scan Density 10 Armor Coverage 150 Core Shielding 20 Evasion (%) 40 Recoil Reduction 2 Item Schematics ----------------- None Robot Schematics ------------------ None Fabricated ------------ Nothing Repaired ---------- Nothing Studied --------- Hvy. EM Pulse Gun | -9/Materials | Hacked Lgt. Ion Engine | -9/Materials | Hacked Alien Tech Used ----------------- None Achievements -------------- None Challenges ------------ None Game ------ Seed MultireflexRainbowBooster Manual? 0 Play Time 00:18:52 Cumulative 34.8 hours Start 2026.02.01 @ 19:02:44 End 2026.02.01 @ 19:20:52 Sessions 1 Manual Loads 0 Difficulty Rogue Special Mode None Game No. 74 Rogue 74 Adventurer 0 Explorer 0 Win Type - Total 0 Types 0/0/0/0/0/0/0/0/0/0 Lore% 16 Gallery% 24 Achievement% 19 Wizard Run 0 Options --------- Layout 0 ASCII 0 Keyboard 1 Movement Arrows Keybinds 0 Fullscreen 1 Font 18/Smallcaps Map View 38x25 Zoom Use 94% Tactical HUD 1 Map Filters NONE Filters NONE Steam 1 RUN: 2e024ad9-da33-46b2-b602-ff8791572891